[Event "Late-Titled-Tuesday-Blitz-October-03-2023"]
[Site "Chess.com"]
[Date "2023.10.03"]
[Round "2"]
[White "Alexei_Gubajdullin"]
[Black "PositionalPanther"]
[Result "1-0"]
[WhiteElo "2763"]
[BlackElo "2526"]
[TimeControl "180+1"]
[EndTime "14:15:18 PDT"]
[Termination "Alexei_Gubajdullin won by resignation"]

1. d4 {[%clk 0:03:00.9]} 1... d5 {[%clk 0:02:59.9]} 2. Nf3 {[%clk 0:03:01.1]}
2... e6 {[%clk 0:02:59.9]} 3. Bf4 {[%clk 0:03:01.6]} 3... Bd6 {[%clk 0:02:59.8]}
4. Bg3 {[%clk 0:03:01.8]} 4... Bxg3 {[%clk 0:02:58]} 5. hxg3 {[%clk 0:03:01.4]}
5... Nf6 {[%clk 0:02:57.2]} 6. Nbd2 {[%clk 0:03:01.4]} 6... Nbd7 {[%clk
0:02:55.4]} 7. e3 {[%clk 0:03:00.6]} 7... O-O {[%clk 0:02:48.8]} 8. Bd3 {[%clk
0:02:57.5]} 8... h6 {[%clk 0:02:48]} 9. Ne5 {[%clk 0:02:55]} 9... c5 {[%clk
0:02:44.6]} 10. c3 {[%clk 0:02:54.8]} 10... Nxe5 {[%clk 0:02:38.9]} 11. dxe5
{[%clk 0:02:54.5]} 11... Nd7 {[%clk 0:02:36.4]} 12. Qh5 {[%clk 0:02:42.3]} 12...
f5 {[%clk 0:02:17.2]} 13. exf6 {[%clk 0:02:37]} 13... Qxf6 {[%clk 0:02:16.7]}
14. Nf3 {[%clk 0:02:27.4]} 14... e5 {[%clk 0:02:12]} 15. e4 {[%clk 0:02:23.8]}
15... c4 {[%clk 0:02:03.7]} 16. Bc2 {[%clk 0:02:22.8]} 16... d4 {[%clk
0:02:02.7]} 17. cxd4 {[%clk 0:02:09.9]} 17... exd4 {[%clk 0:02:02.9]} 18. Qd5+
{[%clk 0:02:07.5]} 18... Kh8 {[%clk 0:02:01.3]} 19. Qxd4 {[%clk 0:02:02.4]}
19... Qxd4 {[%clk 0:01:45.3]} 20. Nxd4 {[%clk 0:02:01.7]} 20... Nc5 {[%clk
0:01:45.4]} 21. f3 {[%clk 0:01:50.5]} 21... a6 {[%clk 0:01:38.6]} 22. O-O-O
{[%clk 0:01:46.4]} 22... b5 {[%clk 0:01:38.8]} 23. Rh5 {[%clk 0:01:45.9]} 23...
Ne6 {[%clk 0:01:26.6]} 24. Nxe6 {[%clk 0:01:37.3]} 24... Bxe6 {[%clk 0:01:27.5]}
25. g4 {[%clk 0:01:37.2]} 25... Kg8 {[%clk 0:01:23.2]} 26. Re5 {[%clk
0:01:33.6]} 26... Kf7 {[%clk 0:01:18.7]} 27. Rd6 {[%clk 0:01:30.8]} 27... Rfe8
{[%clk 0:01:18.1]} 28. Rb6 {[%clk 0:01:24.8]} 28... g5 {[%clk 0:00:56.4]} 29. a3
{[%clk 0:01:22.1]} 29... Kf6 {[%clk 0:00:49.8]} 30. Rc5 {[%clk 0:01:21.9]} 30...
Rec8 {[%clk 0:00:26]} 31. e5+ {[%clk 0:01:19.3]} 31... Ke7 {[%clk 0:00:22.6]}
32. Rxc8 {[%clk 0:01:14.4]} 32... Rxc8 {[%clk 0:00:22.1]} 33. Rxe6+ {[%clk
0:01:13.5]} 1-0

[Event "Late-Titled-Tuesday-Blitz-October-03-2023"]
[Site "Chess.com"]
[Date "2023.10.03"]
[Round "2"]
[White "Chessnut2018"]
[Black "AsaHoffmann"]
[Result "0-1"]
[WhiteElo "1261"]
[BlackElo "2376"]
[TimeControl "180+1"]
[EndTime "14:15:19 PDT"]
[Termination "AsaHoffmann won on time"]

1. d4 {[%clk 0:03:00.9]} 1... Nf6 {[%clk 0:02:56.8]} 2. c4 {[%clk 0:03:00.8]}
2... c5 {[%clk 0:02:56.5]} 3. e3 {[%clk 0:02:59.8]} 3... g6 {[%clk 0:02:55.7]}
4. Nc3 {[%clk 0:02:59.5]} 4... Bg7 {[%clk 0:02:53.9]} 5. Nf3 {[%clk 0:02:59.1]}
5... O-O {[%clk 0:02:52.9]} 6. Be2 {[%clk 0:02:58.8]} 6... d6 {[%clk 0:02:51.2]}
7. O-O {[%clk 0:02:56.9]} 7... Nbd7 {[%clk 0:02:50.9]} 8. a3 {[%clk 0:02:54.6]}
8... b6 {[%clk 0:02:47.3]} 9. d5 {[%clk 0:02:48.9]} 9... a6 {[%clk 0:02:45]} 10.
e4 {[%clk 0:02:48]} 10... Qc7 {[%clk 0:02:44.5]} 11. Re1 {[%clk 0:02:47.5]}
11... e6 {[%clk 0:02:43.5]} 12. h3 {[%clk 0:02:44.6]} 12... e5 {[%clk
0:02:43.2]} 13. Be3 {[%clk 0:02:42.4]} 13... Nh5 {[%clk 0:02:42.1]} 14. Bf1
{[%clk 0:02:34.5]} 14... Rb8 {[%clk 0:02:40.4]} 15. Rb1 {[%clk 0:02:34.4]} 15...
Qd8 {[%clk 0:02:28.4]} 16. g4 {[%clk 0:02:32.3]} 16... Nf4 {[%clk 0:02:26]} 17.
b4 {[%clk 0:02:13.9]} 17... f5 {[%clk 0:02:17.1]} 18. g5 {[%clk 0:01:47]} 18...
Qe7 {[%clk 0:02:00.6]} 19. Bxf4 {[%clk 0:01:44]} 19... exf4 {[%clk 0:01:59.9]}
20. exf5 {[%clk 0:01:35.5]} 20... Be5 {[%clk 0:01:55.8]} 21. Nxe5 {[%clk
0:01:20.5]} 21... Nxe5 {[%clk 0:01:54.5]} 22. f6 {[%clk 0:01:16.3]} 22... Qd7
{[%clk 0:01:50.8]} 23. Ne4 {[%clk 0:01:02.7]} 23... Qf5 {[%clk 0:01:47.4]} 24.
f3 {[%clk 0:00:48.2]} 24... Bd7 {[%clk 0:01:43.6]} 25. bxc5 {[%clk 0:00:25.3]}
25... bxc5 {[%clk 0:01:41.6]} 26. Rxb8 {[%clk 0:00:08.2]} 26... Rxb8 {[%clk
0:01:40.7]} 27. Bd3 {[%clk 0:00:07.9]} 27... Qxh3 {[%clk 0:01:37.8]} 28. Nxd6
{[%clk 0:00:07.4]} 28... Nxf3+ {[%clk 0:01:32.3]} 29. Kf2 {[%clk 0:00:05.7]}
29... Qg3+ {[%clk 0:01:31.9]} 30. Ke2 {[%clk 0:00:04.7]} 30... Rb2+ {[%clk
0:01:31.1]} 31. Bc2 {[%clk 0:00:03.3]} 31... Nd4+ {[%clk 0:01:30.2]} 0-1

[Event "Late-Titled-Tuesday-Blitz-October-03-2023"]
[Site "Chess.com"]
[Date "2023.10.03"]
[Round "2"]
[White "BardArtem"]
[Black "szachuspl"]
[Result "1/2-1/2"]
[WhiteElo "2784"]
[BlackElo "2540"]
[TimeControl "180+1"]
[EndTime "14:15:20 PDT"]
[Termination "Game drawn by repetition"]

1. e4 {[%clk 0:02:58.4]} 1... g6 {[%clk 0:02:56]} 2. d4 {[%clk 0:02:58.1]} 2...
Bg7 {[%clk 0:02:56.1]} 3. Nc3 {[%clk 0:02:57.7]} 3... d6 {[%clk 0:02:56.5]} 4.
Nf3 {[%clk 0:02:57.6]} 4... a6 {[%clk 0:02:56.5]} 5. a4 {[%clk 0:02:55.6]} 5...
Nc6 {[%clk 0:02:56.4]} 6. h3 {[%clk 0:02:54.7]} 6... Nf6 {[%clk 0:02:53.2]} 7.
Bd3 {[%clk 0:02:48.6]} 7... O-O {[%clk 0:02:53.2]} 8. O-O {[%clk 0:02:49]} 8...
e5 {[%clk 0:02:53.5]} 9. Be3 {[%clk 0:02:40.6]} 9... Re8 {[%clk 0:02:51.4]} 10.
d5 {[%clk 0:02:36.9]} 10... Ne7 {[%clk 0:02:51.3]} 11. Ne2 {[%clk 0:02:31.8]}
11... Nh5 {[%clk 0:02:50.1]} 12. Ng3 {[%clk 0:02:17.8]} 12... Nf4 {[%clk
0:02:47.9]} 13. c4 {[%clk 0:02:12.7]} 13... Rf8 {[%clk 0:02:46]} 14. c5 {[%clk
0:02:10]} 14... f5 {[%clk 0:02:37.5]} 15. exf5 {[%clk 0:02:03.9]} 15... Nxd3
{[%clk 0:02:37.5]} 16. f6 {[%clk 0:01:54.9]} 16... Bxf6 {[%clk 0:02:30.6]} 17.
Qxd3 {[%clk 0:01:54]} 17... Nf5 {[%clk 0:02:28.6]} 18. Ne4 {[%clk 0:01:49.5]}
18... Nxe3 {[%clk 0:02:20.2]} 19. Qxe3 {[%clk 0:01:48.1]} 19... Bf5 {[%clk
0:02:16.2]} 20. Rac1 {[%clk 0:01:44.4]} 20... Be7 {[%clk 0:02:15.8]} 21. Rfd1
{[%clk 0:01:42.3]} 21... Bxe4 {[%clk 0:01:49.2]} 22. Qxe4 {[%clk 0:01:41.4]}
22... Rf4 {[%clk 0:01:49.5]} 23. Qc2 {[%clk 0:01:27.4]} 23... dxc5 {[%clk
0:01:49.3]} 24. Nxe5 {[%clk 0:01:25.1]} 24... Bd6 {[%clk 0:01:49.7]} 25. Nd3
{[%clk 0:01:22.5]} 25... Rf5 {[%clk 0:01:26.1]} 26. Nxc5 {[%clk 0:01:21.4]}
26... Bf4 {[%clk 0:01:06.4]} 27. Ne6 {[%clk 0:01:15.7]} 27... Qd6 {[%clk
0:01:06.4]} 28. Nxf4 {[%clk 0:01:13.3]} 28... Qxf4 {[%clk 0:01:06.4]} 29. Qxc7
{[%clk 0:01:10.5]} 29... Qxf2+ {[%clk 0:01:05.4]} 30. Kh1 {[%clk 0:01:10.9]}
30... Raf8 {[%clk 0:00:58.7]} 31. d6 {[%clk 0:01:07.3]} 31... Rf3 {[%clk
0:00:55.3]} 32. d7 {[%clk 0:00:52.9]} 32... Rxh3+ {[%clk 0:00:49.9]} 33. gxh3
{[%clk 0:00:45.9]} 33... Qf3+ {[%clk 0:00:50]} 34. Kg1 {[%clk 0:00:46.2]} 34...
Qf2+ {[%clk 0:00:50.3]} 35. Kh1 {[%clk 0:00:46.6]} 35... Qf3+ {[%clk 0:00:50.8]}
36. Kg1 {[%clk 0:00:47.3]} 36... Qf2+ {[%clk 0:00:51.2]} 37. Kh1 {[%clk
0:00:47.9]} 1/2-1/2

[Event "Late-Titled-Tuesday-Blitz-October-03-2023"]
[Site "Chess.com"]
[Date "2023.10.03"]
[Round "2"]
[White "Let_it_be_1"]
[Black "OYAcosta"]
[Result "1/2-1/2"]
[WhiteElo "2640"]
[BlackElo "2178"]
[TimeControl "180+1"]
[EndTime "14:15:21 PDT"]
[Termination "Game drawn by repetition"]

1. e4 {[%clk 0:03:00.9]} 1... c6 {[%clk 0:03:00]} 2. d4 {[%clk 0:03:00.9]} 2...
d5 {[%clk 0:03:00.9]} 3. Nd2 {[%clk 0:03:01.3]} 3... dxe4 {[%clk 0:03:00.6]} 4.
Nxe4 {[%clk 0:03:02.2]} 4... Bf5 {[%clk 0:03:00.2]} 5. Ng3 {[%clk 0:03:02.5]}
5... Bg6 {[%clk 0:03:00.7]} 6. N1e2 {[%clk 0:03:03.1]} 6... e6 {[%clk
0:02:54.6]} 7. Nf4 {[%clk 0:03:01.6]} 7... Bd6 {[%clk 0:02:55.3]} 8. c3 {[%clk
0:03:01.5]} 8... Qc7 {[%clk 0:02:55.5]} 9. Ngh5 {[%clk 0:03:01]} 9... Nf6 {[%clk
0:02:38.7]} 10. Nxg7+ {[%clk 0:02:56.3]} 10... Ke7 {[%clk 0:02:36.6]} 11. Ngh5
{[%clk 0:02:49.1]} 11... Nbd7 {[%clk 0:02:18]} 12. Nxf6 {[%clk 0:02:46.5]} 12...
Nxf6 {[%clk 0:02:17.9]} 13. Nxg6+ {[%clk 0:02:29.8]} 13... hxg6 {[%clk
0:02:17.4]} 14. h3 {[%clk 0:02:30]} 14... c5 {[%clk 0:02:13]} 15. Bg5 {[%clk
0:02:23.1]} 15... Rh5 {[%clk 0:02:07.8]} 16. h4 {[%clk 0:02:19]} 16... Bf4
{[%clk 0:02:06.6]} 17. Be2 {[%clk 0:02:14.6]} 17... Rh7 {[%clk 0:02:00.3]} 18.
Rg1 {[%clk 0:02:01.5]} 18... Bxg5 {[%clk 0:01:58.8]} 19. hxg5 {[%clk 0:02:01]}
19... Ne4 {[%clk 0:01:58.3]} 20. Qd3 {[%clk 0:01:50]} 20... Qf4 {[%clk
0:01:54.7]} 21. Bf3 {[%clk 0:01:44.3]} 21... Nxg5 {[%clk 0:01:48.3]} 22. dxc5
{[%clk 0:01:00.7]} 22... Rd8 {[%clk 0:01:41.8]} 23. Qe3 {[%clk 0:00:58.7]} 23...
Nxf3+ {[%clk 0:01:05.6]} 24. gxf3 {[%clk 0:00:54.5]} 24... Qf5 {[%clk
0:01:02.7]} 25. Rd1 {[%clk 0:00:26.5]} 25... Rxd1+ {[%clk 0:00:58]} 26. Kxd1
{[%clk 0:00:26.6]} 26... Qb1+ {[%clk 0:00:55.4]} 27. Qc1 {[%clk 0:00:26.9]}
27... Qd3+ {[%clk 0:00:55.5]} 28. Qd2 {[%clk 0:00:27.3]} 28... Qb1+ {[%clk
0:00:55.1]} 29. Qc1 {[%clk 0:00:27.3]} 29... Qd3+ {[%clk 0:00:55.7]} 30. Qd2
{[%clk 0:00:27.8]} 30... Qb1+ {[%clk 0:00:56.3]} 31. Qc1 {[%clk 0:00:28.2]}
1/2-1/2

[Event "Late-Titled-Tuesday-Blitz-October-03-2023"]
[Site "Chess.com"]
[Date "2023.10.03"]
[Round "2"]
[White "Caisachess"]
[Black "AlejandroBalde"]
[Result "1-0"]
[WhiteElo "2415"]
[BlackElo "2102"]
[TimeControl "180+1"]
[EndTime "14:15:21 PDT"]
[Termination "Caisachess won on time"]

1. e4 {[%clk 0:03:00.9]} 1... c5 {[%clk 0:02:54.1]} 2. c3 {[%clk 0:03:00.6]}
2... d5 {[%clk 0:02:52]} 3. exd5 {[%clk 0:03:01]} 3... Qxd5 {[%clk 0:02:52.9]}
4. d4 {[%clk 0:03:01.2]} 4... cxd4 {[%clk 0:02:53]} 5. cxd4 {[%clk 0:03:00.8]}
5... e6 {[%clk 0:02:51.8]} 6. Nf3 {[%clk 0:03:00]} 6... Nf6 {[%clk 0:02:51.5]}
7. Nc3 {[%clk 0:03:00.6]} 7... Bb4 {[%clk 0:02:51.3]} 8. Bd3 {[%clk 0:03:00.9]}
8... O-O {[%clk 0:02:50]} 9. O-O {[%clk 0:03:01.5]} 9... Qd8 {[%clk 0:02:40.5]}
10. Bg5 {[%clk 0:02:59.5]} 10... Be7 {[%clk 0:02:38.6]} 11. Bc2 {[%clk
0:02:58.9]} 11... b6 {[%clk 0:02:32.1]} 12. Re1 {[%clk 0:02:56.5]} 12... Bb7
{[%clk 0:02:24]} 13. Qd3 {[%clk 0:02:55.2]} 13... g6 {[%clk 0:02:11.5]} 14. Rad1
{[%clk 0:02:52.8]} 14... Nd5 {[%clk 0:02:06.5]} 15. Qd2 {[%clk 0:02:39.3]} 15...
Bxg5 {[%clk 0:02:01.1]} 16. Nxg5 {[%clk 0:02:39.1]} 16... Nd7 {[%clk 0:01:34.2]}
17. h4 {[%clk 0:02:31.4]} 17... N7f6 {[%clk 0:01:32.9]} 18. a3 {[%clk
0:02:18.7]} 18... a6 {[%clk 0:01:27.5]} 19. Nce4 {[%clk 0:02:17.4]} 19... Rc8
{[%clk 0:01:15.8]} 20. Bd3 {[%clk 0:02:11.4]} 20... a5 {[%clk 0:00:49]} 21. Bb1
{[%clk 0:02:02.3]} 21... Qd7 {[%clk 0:00:20.4]} 22. Nf3 {[%clk 0:02:00.1]} 22...
Nxe4 {[%clk 0:00:06.3]} 23. Bxe4 {[%clk 0:01:59.3]} 23... Nf6 {[%clk 0:00:06.8]}
24. Bxb7 {[%clk 0:01:54]} 24... Qxb7 {[%clk 0:00:06.6]} 25. Qf4 {[%clk
0:01:53.8]} 25... Nd5 {[%clk 0:00:05.8]} 26. Qh6 {[%clk 0:01:53.1]} 26... f6
{[%clk 0:00:02.4]} 27. Rxe6 {[%clk 0:01:51.5]} 27... Qg7 {[%clk 0:00:01.6]} 28.
Qd2 {[%clk 0:01:45.1]} 28... Rc7 {[%clk 0:00:01.5]} 29. Rde1 {[%clk 0:01:42]}
29... Rfc8 {[%clk 0:00:01.6]} 30. Re8+ {[%clk 0:01:41.4]} 30... Rxe8 {[%clk
0:00:01.9]} 31. Rxe8+ {[%clk 0:01:41.6]} 31... Kf7 {[%clk 0:00:02.4]} 32. Re1
{[%clk 0:01:40.4]} 32... f5 {[%clk 0:00:02.8]} 33. Qe2 {[%clk 0:01:40.2]} 33...
Re7 {[%clk 0:00:01.6]} 34. Qc4 {[%clk 0:01:38.5]} 1-0

[Event "Late-Titled-Tuesday-Blitz-October-03-2023"]
[Site "Chess.com"]
[Date "2023.10.03"]
[Round "2"]
[White "marik_spb"]
[Black "luizzy"]
[Result "1-0"]
[WhiteElo "2389"]
[BlackElo "2610"]
[TimeControl "180+1"]
[EndTime "14:15:29 PDT"]
[Termination "marik_spb won by checkmate"]

1. d4 {[%clk 0:03:00.9]} 1... d6 {[%clk 0:02:59.2]} 2. c4 {[%clk 0:03:01]} 2...
e5 {[%clk 0:02:58.4]} 3. dxe5 {[%clk 0:03:00.5]} 3... dxe5 {[%clk 0:02:59.3]} 4.
Qxd8+ {[%clk 0:03:00.7]} 4... Kxd8 {[%clk 0:03:00.2]} 5. Nc3 {[%clk 0:02:57.6]}
5... Be6 {[%clk 0:03:00.3]} 6. e4 {[%clk 0:02:53]} 6... c6 {[%clk 0:03:00]} 7.
Be3 {[%clk 0:02:51.9]} 7... Nd7 {[%clk 0:02:59.7]} 8. O-O-O {[%clk 0:02:48.3]}
8... Kc7 {[%clk 0:02:59.7]} 9. b3 {[%clk 0:02:41]} 9... f6 {[%clk 0:02:53.2]}
10. g3 {[%clk 0:02:39.4]} 10... a5 {[%clk 0:02:20.3]} 11. Bh3 {[%clk 0:02:38.5]}
11... Bxh3 {[%clk 0:02:18.5]} 12. Nxh3 {[%clk 0:02:39.4]} 12... Ba3+ {[%clk
0:02:15.7]} 13. Kc2 {[%clk 0:02:39]} 13... Ne7 {[%clk 0:02:14.5]} 14. f4 {[%clk
0:02:33.1]} 14... Rhd8 {[%clk 0:02:10.8]} 15. fxe5 {[%clk 0:02:02.1]} 15... fxe5
{[%clk 0:02:06.9]} 16. Ng5 {[%clk 0:01:56.8]} 16... Nf8 {[%clk 0:02:07.2]} 17.
Rxd8 {[%clk 0:01:37.4]} 17... Rxd8 {[%clk 0:02:04.5]} 18. Rf1 {[%clk 0:01:36.7]}
18... h6 {[%clk 0:02:00.5]} 19. Rxf8 {[%clk 0:01:31]} 19... hxg5 {[%clk
0:01:55.1]} 20. Rf7 {[%clk 0:01:18]} 20... Rh8 {[%clk 0:01:54.4]} 21. Bxg5
{[%clk 0:00:40.5]} 21... Rxh2+ {[%clk 0:01:53.6]} 22. Kd3 {[%clk 0:00:40.7]}
22... Kd7 {[%clk 0:01:39.2]} 23. Rxg7 {[%clk 0:00:38.7]} 23... Ke6 {[%clk
0:01:28.1]} 24. Na4 {[%clk 0:00:30.8]} 24... Rxa2 {[%clk 0:01:23.3]} 25. c5
{[%clk 0:00:21.8]} 25... Nc8 {[%clk 0:01:19.3]} 26. Rc7 {[%clk 0:00:16.7]} 26...
b5 {[%clk 0:01:11.6]} 27. cxb6 {[%clk 0:00:13.8]} 27... Nd6 {[%clk 0:01:01.7]}
28. Re7# {[%clk 0:00:12.9]} 1-0

[Event "Late-Titled-Tuesday-Blitz-October-03-2023"]
[Site "Chess.com"]
[Date "2023.10.03"]
[Round "2"]
[White "alexrustemov"]
[Black "hellokostya"]
[Result "0-1"]
[WhiteElo "2827"]
[BlackElo "2560"]
[TimeControl "180+1"]
[EndTime "14:15:32 PDT"]
[Termination "hellokostya won on time"]

1. d4 {[%clk 0:03:00.9]} 1... Nf6 {[%clk 0:02:57.7]} 2. Nf3 {[%clk 0:03:01]}
2... g6 {[%clk 0:02:58.3]} 3. g3 {[%clk 0:03:00.8]} 3... Bg7 {[%clk 0:02:59]} 4.
Bg2 {[%clk 0:03:01.2]} 4... O-O {[%clk 0:02:59.9]} 5. O-O {[%clk 0:03:01.5]}
5... d6 {[%clk 0:03:00.8]} 6. c4 {[%clk 0:03:00.8]} 6... c5 {[%clk 0:03:00.9]}
7. Nc3 {[%clk 0:02:59.7]} 7... Nc6 {[%clk 0:03:00.4]} 8. d5 {[%clk 0:02:59]}
8... Na5 {[%clk 0:03:00.5]} 9. Nd2 {[%clk 0:02:59.1]} 9... e6 {[%clk 0:03:00.8]}
10. Qc2 {[%clk 0:02:58.3]} 10... Re8 {[%clk 0:02:57.8]} 11. h3 {[%clk
0:02:55.8]} 11... exd5 {[%clk 0:02:53.6]} 12. cxd5 {[%clk 0:02:56.7]} 12... b5
{[%clk 0:02:51.5]} 13. e4 {[%clk 0:02:48.2]} 13... b4 {[%clk 0:02:44]} 14. Nd1
{[%clk 0:02:47.7]} 14... Ba6 {[%clk 0:02:38.3]} 15. Ne3 {[%clk 0:02:42.8]} 15...
Bxf1 {[%clk 0:02:37.4]} 16. Bxf1 {[%clk 0:02:38.8]} 16... Nd7 {[%clk 0:02:31.4]}
17. Rb1 {[%clk 0:02:35.5]} 17... Bd4 {[%clk 0:02:15.4]} 18. Ndc4 {[%clk
0:02:29.3]} 18... Nxc4 {[%clk 0:02:13.9]} 19. Nxc4 {[%clk 0:02:28.7]} 19... Nb6
{[%clk 0:02:05.9]} 20. Na5 {[%clk 0:02:27.3]} 20... Qf6 {[%clk 0:01:58.1]} 21.
Nc6 {[%clk 0:02:23.3]} 21... Rxe4 {[%clk 0:01:51.5]} 22. Bf4 {[%clk 0:01:49.2]}
22... Rae8 {[%clk 0:01:40]} 23. Bg2 {[%clk 0:01:48.6]} 23... Re2 {[%clk
0:01:29.3]} 24. Qd3 {[%clk 0:01:47]} 24... Bxf2+ {[%clk 0:01:21.5]} 25. Kh1
{[%clk 0:01:46.4]} 25... Re1+ {[%clk 0:01:19.2]} 26. Rxe1 {[%clk 0:01:45.8]}
26... Rxe1+ {[%clk 0:01:20.1]} 27. Kh2 {[%clk 0:01:46.4]} 27... Bg1+ {[%clk
0:01:19.9]} 28. Kh1 {[%clk 0:01:46.6]} 28... Be3+ {[%clk 0:01:19.8]} 29. Kh2
{[%clk 0:01:25.3]} 29... Bxf4 {[%clk 0:01:19.2]} 30. Qxg6+ {[%clk 0:00:55]}
30... hxg6 {[%clk 0:01:15.9]} 31. Ne7+ {[%clk 0:00:51.9]} 31... Qxe7 {[%clk
0:01:13.7]} 0-1

[Event "Late-Titled-Tuesday-Blitz-October-03-2023"]
[Site "Chess.com"]
[Date "2023.10.03"]
[Round "2"]
[White "DanielDardha2005"]
[Black "onnoelgersma"]
[Result "1-0"]
[WhiteElo "2904"]
[BlackElo "2554"]
[TimeControl "180+1"]
[EndTime "14:15:47 PDT"]
[Termination "DanielDardha2005 won by checkmate"]

1. a3 {[%clk 0:03:00]} 1... a6 {[%clk 0:02:58.6]} 2. e3 {[%clk 0:02:59.9]} 2...
h6 {[%clk 0:02:58.8]} 3. d4 {[%clk 0:02:59.5]} 3... Ra7 {[%clk 0:02:56.4]} 4.
Ra2 {[%clk 0:03:00.1]} 4... Ra8 {[%clk 0:02:56]} 5. c4 {[%clk 0:02:59.9]} 5...
Ra7 {[%clk 0:02:55.2]} 6. Nc3 {[%clk 0:03:00]} 6... e6 {[%clk 0:02:55.6]} 7. Ra1
{[%clk 0:02:59.5]} 7... Ra8 {[%clk 0:02:55.5]} 8. b4 {[%clk 0:02:59.3]} 8... Nf6
{[%clk 0:02:55]} 9. Ra2 {[%clk 0:02:59.7]} 9... Nc6 {[%clk 0:02:51.9]} 10. Rd2
{[%clk 0:03:00.1]} 10... Ne7 {[%clk 0:02:52.4]} 11. d5 {[%clk 0:02:58.8]} 11...
Ng6 {[%clk 0:02:51.1]} 12. Bb2 {[%clk 0:02:58.6]} 12... e5 {[%clk 0:02:50]} 13.
Bd3 {[%clk 0:02:58.3]} 13... d6 {[%clk 0:02:48.8]} 14. h4 {[%clk 0:02:50.7]}
14... a5 {[%clk 0:02:43.3]} 15. h5 {[%clk 0:02:46.4]} 15... Ne7 {[%clk
0:02:43.3]} 16. f4 {[%clk 0:02:44]} 16... Ng4 {[%clk 0:02:41.5]} 17. Qf3 {[%clk
0:02:37.8]} 17... axb4 {[%clk 0:02:38.6]} 18. axb4 {[%clk 0:02:37.8]} 18... c6
{[%clk 0:02:37.6]} 19. c5 {[%clk 0:02:36.1]} 19... cxd5 {[%clk 0:02:32.5]} 20.
Bb5+ {[%clk 0:02:34.5]} 20... Bd7 {[%clk 0:02:28.8]} 21. Qxg4 {[%clk 0:02:33.5]}
21... f5 {[%clk 0:02:17.4]} 22. Qe2 {[%clk 0:02:33.3]} 22... d4 {[%clk
0:02:16.4]} 23. fxe5 {[%clk 0:02:27.8]} 23... dxc3 {[%clk 0:02:13.4]} 24. Bxc3
{[%clk 0:02:28.7]} 24... d5 {[%clk 0:02:12.6]} 25. e6 {[%clk 0:02:26.1]} 25...
Bxb5 {[%clk 0:02:12.5]} 26. Qxb5+ {[%clk 0:02:27]} 26... Nc6 {[%clk 0:02:13.1]}
27. Qxb7 {[%clk 0:02:27.6]} 27... Ne7 {[%clk 0:01:52.4]} 28. Qb5+ {[%clk
0:02:24.7]} 28... Nc6 {[%clk 0:01:51.3]} 29. e4 {[%clk 0:02:21.1]} 29... Qc8
{[%clk 0:01:44.2]} 30. exd5 {[%clk 0:02:19.9]} 30... Be7 {[%clk 0:01:43.2]} 31.
Bxg7 {[%clk 0:02:14.3]} 31... Rg8 {[%clk 0:01:42.5]} 32. d6 {[%clk 0:02:09.9]}
32... Qxe6+ {[%clk 0:01:40.6]} 33. Re2 {[%clk 0:02:10.1]} 33... Rxg7 {[%clk
0:01:35.7]} 34. Qxc6+ {[%clk 0:01:58]} 34... Qd7 {[%clk 0:01:33.8]} 35. Qxa8+
{[%clk 0:01:54.9]} 35... Qd8 {[%clk 0:01:28.6]} 36. Qa1 {[%clk 0:01:43]} 36...
Rh7 {[%clk 0:01:18.9]} 37. Qh8+ {[%clk 0:01:39.1]} 37... Kd7 {[%clk 0:00:54.9]}
38. Qxd8+ {[%clk 0:01:40]} 38... Bxd8 {[%clk 0:00:52.3]} 39. Nf3 {[%clk
0:01:40.9]} 39... Bf6 {[%clk 0:00:40.4]} 40. Re7+ {[%clk 0:01:41.8]} 40... Kc6
{[%clk 0:00:37.1]} 41. Rxh7 {[%clk 0:01:42.5]} 41... Bg7 {[%clk 0:00:34.7]} 42.
Kf1 {[%clk 0:01:43.4]} 42... Bf8 {[%clk 0:00:32.5]} 43. Ke2 {[%clk 0:01:44.2]}
43... Bg7 {[%clk 0:00:32.7]} 44. Rd1 {[%clk 0:01:45.1]} 44... Bf8 {[%clk
0:00:33.2]} 45. Rf7 {[%clk 0:01:46]} 45... Bg7 {[%clk 0:00:33.4]} 46. Rxf5
{[%clk 0:01:46.9]} 46... Kb5 {[%clk 0:00:31.4]} 47. Nd4+ {[%clk 0:01:47.8]}
47... Kc4 {[%clk 0:00:31.3]} 48. Rf7 {[%clk 0:01:48.7]} 48... Bh8 {[%clk
0:00:30.6]} 49. d7 {[%clk 0:01:49.6]} 49... Bf6 {[%clk 0:00:29.5]} 50. Rxf6
{[%clk 0:01:50.5]} 50... Kxb4 {[%clk 0:00:27.9]} 51. Rxh6 {[%clk 0:01:51.4]}
51... Kc3 {[%clk 0:00:27.2]} 52. Nf3 {[%clk 0:01:52.3]} 52... Kc2 {[%clk
0:00:26.8]} 53. Rhd6 {[%clk 0:01:53.2]} 53... Kc3 {[%clk 0:00:26.8]} 54. c6
{[%clk 0:01:54.1]} 54... Kc4 {[%clk 0:00:27.7]} 55. c7 {[%clk 0:01:55]} 55...
Kb5 {[%clk 0:00:28.5]} 56. d8=Q {[%clk 0:01:55.6]} 56... Ka5 {[%clk 0:00:29.3]}
57. R1d4 {[%clk 0:01:52.1]} 57... Kb5 {[%clk 0:00:29.5]} 58. Kd3 {[%clk
0:01:52]} 58... Ka5 {[%clk 0:00:29.5]} 59. Kc3 {[%clk 0:01:52.3]} 59... Kb5
{[%clk 0:00:29.8]} 60. Rb4+ {[%clk 0:01:53.2]} 60... Kc5 {[%clk 0:00:29.6]} 61.
c8=Q# {[%clk 0:01:54.1]} 1-0